bitfinex/quotes_ETHUSD_20240827
["timestamp","ask_amount","ask_price","bid_price","bid_amount"]
[1724719563243,1.54854005,2696.5,2696.1,7.41792]
[1724719563665,1.54854005,2696.5,2696.1,7.41793]
[1724719563870,4.38916181,2696.6,2696.1,3.70896]
[1724719564034,2.4445,2696.6,2696.1,5.364336]
[1724719564755,4.38916181,2696.6,2696.1,5.364336]
[1724719565058,2.4445,2696.6,2696.3,3.70878]
[1724719565418,4.38916181,2696.6,2696.3,3.70878]
[1724719565639,2.4445,2696.6,2696.3,3.70878]
[1724719566823,4.38893357,2696.6,2696.3,3.70878]
[1724719568135,3.70851,2696.5,2696.1,3.70896]
[1724719568333,5.35350393,2696.6,2696.1,3.70896]
[1724719568531,8.09732357,2696.6,2696.2,0.06948411]
[1724719569755,4.38893357,2696.6,2696.2,3.77839411]
[1724719570833,3.70855,2696.5,2696.2,0.06948411]
[1724719571015,9.46905362,2696.3,2695.7,3.70956]
[1724719571216,9.46905362,2696.3,2695.8,3.77888411]
[1724719571217,7.52462005,2696.3,2695.8,3.77888411]
[1724719571462,9.46961195,2696.3,2695.8,3.77888411]
[1724719571754,1.54854005,2696.1,2695.8,3.77888411]
[1724719572521,1.54854005,2696.1,2695.9,3.70932]
[1724719573257,1.54854005,2696.1,2696.0,0.06948411]
[1724719573468,1.9449919,2696.2,2696.0,0.06948411]
[1724719574138,7.52462005,2696.3,2696.0,0.06948411]
[1724719574139,1.9449919,2696.1,2696.0,0.06948411]
[1724719574592,1.9449919,2696.2,2696.0,0.06948411]
[1724719576560,1.9449919,2696.2,2696.1,9.82882]
[1724719576759,1.9449919,2696.4,2696.2,3.70886]
[1724719577091,1.9449919,2696.5,2696.2,3.70886]
[1724719577293,1.9449919,2696.5,2696.3,0.06986081]
[1724719577467,1.9449919,2696.5,2696.2,3.70886]
[1724719577804,1.9449919,2696.4,2696.3,3.77863081]
[1724719578354,2.2673,2696.6,2696.3,4.76846989]
[1724719578355,1.9449919,2696.5,2696.3,4.76846989]
[1724719578694,1.9449919,2696.4,2696.3,4.76846989]
[1724719578901,1.9449919,2696.5,2696.3,0.06986081]
[1724719579063,3.81584005,2696.6,2696.2,3.70891]
[1724719579064,1.9449919,2696.4,2696.2,3.70891]
[1724719579391,1.9449919,2696.4,2696.3,0.06970445]
[1724719579799,1.9449919,2696.4,2696.2,3.70891]
[1724719580004,1.9449919,2696.4,2696.3,0.06970445]
[1724719580374,1.94690277,2696.4,2696.0,3.70911]
[1724719580578,1.94691281,2696.4,2696.3,0.06971866]
[1724719580778,3.70854,2696.5,2696.0,3.70911]
[1724719580982,1.94693592,2696.3,2696.0,3.70911]
[1724719581381,3.70854,2696.5,2696.0,7.41822]
[1724719581382,1.94693592,2696.4,2696.0,7.41822]
[1724719582175,1.94693592,2696.4,2696.0,7.41824]
[1724719582380,3.70854,2696.5,2696.0,7.41824]
[1724719582381,1.94693592,2696.3,2696.0,7.41824]
[1724719582626,1.94693592,2696.4,2696.0,7.41824]
[1724719582997,1.94693592,2696.4,2696.1,3.70904]
[1724719583524,1.94693592,2696.4,2696.2,0.06978263]
[1724719585923,1.94692935,2696.4,2696.2,0.06978263]
[1724719586136,1.94692935,2696.3,2696.2,0.06978263]
[1724719586423,4.38502935,2696.3,2696.2,0.06978263]
[1724719586638,3.63595346,2696.3,2696.2,0.06978263]
[1724719586787,3.70893,2696.2,2695.8,3.70937]
[1724719587135,1.94716758,2696.1,2695.8,3.70937]
[1724719587290,3.49570763,2696.2,2695.8,3.70937]
[1724719587795,1.94716758,2696.1,2695.8,3.70937]
[1724719588229,3.49570763,2696.2,2695.8,3.70937]
[1724719588602,3.49570763,2696.2,2695.8,7.41877]
[1724719588912,1.94716758,2696.2,2695.8,7.41877]
[1724719590648,1.9469421,2696.2,2695.8,7.41877]
[1724719591968,1.9469421,2696.2,2695.9,3.70933]
[1724719592881,1.9469421,2696.2,2696.0,3.70919]
[1724719593176,1.9469421,2696.3,2696.1,3.70906]
[1724719593743,2.4381,2696.2,2695.8,3.70937]
[1724719594055,1.54854005,2696.0,2695.7,3.70957]
[1724719594795,1.9469421,2696.1,2695.7,3.70957]
[1724719594953,1.54854005,2696.0,2695.5,10.38]
[1724719595158,1.54854005,2695.6,2695.1,6.13839]
[1724719595350,2.4381,2695.5,2695.1,3.71039]
[1724719595551,1.54854005,2695.2,2694.9,11.09064]
[1724719595767,1.54854005,2695.0,2694.5,3.71121]
[1724719595972,1.54854005,2694.6,2694.1,3.71179]
[1724719596296,1.54854005,2694.6,2693.8,8.15223738]
[1724719596297,1.54854005,2694.4,2693.9,3.712]
[1724719596447,1.54854005,2694.4,2694.0,3.71193]
[1724719597472,1.54854005,2694.4,2693.7,3.7123]
[1724719597473,1.54854005,2694.2,2693.7,3.7123]
[1724719597687,6.14939,2694.5,2693.7,3.7123]
[1724719597688,1.54854005,2694.0,2693.7,3.7123]
[1724719597849,1.54854005,2694.2,2693.8,3.71222]
[1724719598054,8.0961754,2694.5,2693.8,3.71222]
[1724719598055,6.14939,2694.5,2693.8,3.71222]
[1724719598270,3.99083589,2694.5,2693.9,3.71208]
[1724719598651,3.99083589,2694.5,2694.0,0.07107015]
[1724719599601,2.4381,2694.5,2694.0,3.78301015]
[1724719600864,9.7181,2694.8,2694.0,0.07107015]
[1724719601066,9.7181,2694.8,2694.3,3.71143]
[1724719601296,9.7181,2694.8,2694.3,3.71142]
[1724719601501,2.4381,2694.8,2694.4,0.07107015]
[1724719601811,2.4381,2694.8,2694.4,3.78243015]
[1724719602011,2.68191,2694.8,2694.4,0.07107015]
[1724719602704,6.39276,2694.8,2694.4,0.07107015]
[1724719603003,6.39276,2694.8,2694.2,3.71166]
[1724719603174,6.39276,2694.8,2694.5,0.07107015]
[1724719603175,2.68191,2694.8,2694.5,0.07107015]
[1724719603376,2.68191,2694.8,2694.3,3.71152]
[1724719603579,2.68191,2694.8,2694.6,0.07107015]
[1724719603765,2.68191,2694.8,2694.1,3.7117]
[1724719603766,0.639262,2694.7,2694.1,3.7117]
[1724719603967,0.639262,2694.7,2694.1,7.42341]
[1724719604173,0.639262,2694.7,2694.2,0.07107015]
[1724719604879,0.639262,2694.7,2694.2,3.78274015]
[1724719605078,0.639262,2694.7,2694.2,0.07107015]
[1724719605920,6.39277,2694.8,2694.2,3.78274015]
[1724719606121,2.4381,2694.8,2694.2,3.78274015]
[1724719606411,6.14896,2694.8,2694.2,3.78274015]
[1724719607418,2.4381,2694.8,2694.2,0.07107015]
[1724719607718,2.4381,2694.8,2694.3,3.71151]
[1724719607927,2.4381,2694.8,2694.4,0.07102035]
[1724719608086,6.14899,2694.8,2694.4,0.07102035]
[1724719608739,2.4381,2694.8,2694.4,0.07102035]
[1724719609239,6.14903,2694.8,2694.4,0.07102035]
[1724719609448,10.84594,2694.8,2694.4,0.07102035]
[1724719609737,7.13499,2694.8,2694.2,3.71165]
[1724719609933,7.13499,2694.8,2694.5,0.07102035]
[1724719610083,7.13499,2694.8,2694.2,3.71165]
[1724719610288,6.14903,2694.8,2694.3,0.07102035]
[1724719611820,3.71093,2694.8,2694.3,3.78248035]
[1724719614945,2.4381,2694.7,2694.3,3.78248035]
[1724719616330,2.4381,2694.7,2694.3,7.49393035]
[1724719616635,2.4381,2694.7,2694.4,3.71139]
[1724719617206,2.4381,2694.7,2694.5,0.07102035]
[1724719618131,2.4381,2694.7,2694.3,3.71145]
[1724719618292,2.4381,2694.7,2694.6,0.0722791]
[1724719618495,2.4381,2694.7,2694.3,3.71145]
[1724719618816,2.4381,2694.7,2694.4,0.0722791]
[1724719619895,2.2543,2694.9,2694.6,3.71103]
[1724719620101,2.2543,2694.9,2694.7,0.07227198]
[1724719620851,2.2543,2695.1,2694.7,0.07227198]
[1724719621006,5.96482,2695.1,2694.7,0.07227198]
[1724719621338,8.03235635,2695.1,2694.6,3.71103]
[1724719621655,8.03235635,2695.1,2694.4,3.71129]
[1724719621656,2.2543,2694.9,2694.4,3.71129]
[1724719621819,2.2543,2694.9,2694.7,0.07212965]
[1724719622017,2.2543,2694.9,2694.5,3.71116]
[1724719622500,2.2543,2694.9,2694.6,0.07212965]
[1724719622934,2.2543,2694.9,2694.6,3.78321965]
[1724719623136,2.2543,2694.9,2694.6,3.78316965]
[1724719623797,2.2543,2694.9,2694.6,7.49420965]
[1724719624002,2.2543,2694.9,2694.6,3.78316965]
[1724719624858,2.2543,2694.9,2694.6,7.49421965]
[1724719625163,2.2543,2694.9,2694.6,3.78316965]
[1724719626840,2.2543,2695.1,2694.7,3.71097]
[1724719627041,5.96475,2695.1,2694.6,0.07212965]
[1724719627336,2.2543,2695.3,2694.9,3.71071]
[1724719627514,2.2543,2695.3,2695.0,0.07211542]
[1724719628600,2.2543,2695.3,2695.1,3.71036]
[1724719628836,2.2543,2695.5,2695.1,3.71033]
[1724719629000,2.2543,2695.5,2695.2,0.07186635]
[1724719636519,3.70971,2695.7,2695.2,3.78214635]
[1724719636721,6.01981,2695.7,2695.2,4.53139399]
[1724719637350,6.01981,2695.7,2695.2,0.07186635]
[1724719637527,2.3101,2695.5,2695.2,0.07186635]
[1724719638258,2.3101,2695.5,2695.2,3.78206635]
[1724719646919,4.18936429,2695.8,2695.3,3.71012]
[1724719647122,2.2556,2695.8,2695.5,3.70982]
[1724719647413,2.2556,2695.8,2695.6,0.0698343]
[1724719651514,3.80413574,2695.8,2695.6,0.0698343]
[1724719653299,7.51362574,2695.8,2695.3,3.71006]
[1724719653503,9.67458,2695.8,2695.7,0.06964228]
[1724719653705,2.2556,2695.6,2695.2,3.0]
[1724719653919,3.80413574,2695.6,2695.2,3.0]
[1724719654118,2.2556,2695.5,2695.2,3.0]
[1724719654291,2.2556,2695.5,2695.2,6.71029]
[1724719657308,2.2556,2695.5,2695.3,3.71014]
[1724719657708,2.2556,2695.5,2695.3,7.42023]
[1724719658143,2.2556,2695.5,2695.4,3.71002]
[1724719658299,2.2556,2695.5,2695.4,3.77966227]
[1724719659833,1.54853574,2695.8,2695.4,3.77966227]
[1724719660034,2.2556,2695.7,2695.5,3.70979]
[1724719660399,2.2556,2695.7,2695.6,0.06961382]
[1724719661036,3.80413574,2695.7,2695.6,0.06961382]
[1724719661341,3.80413574,2695.7,2695.3,3.71007]
[1724719661512,2.2556,2695.6,2695.4,0.06957826]
[1724719662101,2.2556,2695.6,2695.4,3.77959826]
[1724719662436,2.2556,2695.7,2695.4,3.77959826]
[1724719663440,2.2556,2695.7,2695.5,3.70981]
[1724719663738,2.2556,2695.9,2695.6,3.70967]
[1724719663948,2.2556,2695.9,2695.7,0.06959959]
[1724719665338,4.2002199,2695.9,2695.7,0.06959959]
[1724719665713,2.2556,2695.9,2695.7,0.06959959]
[1724719666318,4.2002199,2695.9,2695.7,0.06959959]
[1724719666624,2.2556,2695.9,2695.7,3.77918959]
[1724719666830,1.9446199,2696.0,2695.8,3.70945]
[1724719667004,1.9446199,2696.0,2695.7,3.77918959]
[1724719667324,6.53966556,2696.0,2695.9,0.0696067]
[1724719667534,6.53966556,2696.0,2695.5,3.70979]
[1724719667736,3.49353334,2695.9,2695.6,0.0696067]
[1724719667918,1.9449976,2695.8,2695.6,0.0696067]
[1724719669774,2.2556,2695.7,2695.6,0.0696067]
[1724719670062,2.2556,2695.7,2695.4,3.71002]
[1724719670553,2.2556,2695.7,2695.5,0.06955692]
[1724719670762,4.20125309,2695.7,2695.5,0.06955692]
[1724719670909,2.2556,2695.7,2695.3,7.42019]
[1724719671116,3.80413574,2695.7,2695.4,0.06955692]
[1724719671329,1.94565309,2695.6,2695.4,0.06955692]
[1724719671529,5.65541309,2695.6,2695.2,6.71028]
[1724719671861,2.2556,2695.4,2695.3,0.06950714]
[1724719672052,4.20125309,2695.4,2695.0,3.71047]
[1724719672238,4.20125309,2695.4,2695.3,0.06959248]
[1724719672466,4.20125309,2695.4,2695.0,3.71047]
[1724719672639,4.20125309,2695.4,2695.3,0.06959248]
[1724719672838,4.20125309,2695.4,2695.0,7.42096]
[1724719673071,4.20125309,2695.4,2695.3,0.06759248]
[1724719673270,4.20125309,2695.4,2695.0,7.42096]
[1724719673567,5.96562,2695.4,2694.9,3.7107]
[1724719673784,1.54853574,2695.1,2695.0,0.06759248]
[1724719673951,5.75175865,2695.1,2694.8,3.71078]
[1724719674150,5.75175865,2695.1,2694.9,0.06777029]
[1724719674553,4.20322291,2695.1,2694.9,0.06777029]
[1724719674950,4.20337562,2695.1,2694.9,0.06777029]
[1724719676675,4.20337562,2695.1,2694.9,3.77844029]
[1724719676877,1.94777562,2695.2,2694.9,3.77844029]
[1724719677374,1.94777562,2695.3,2695.1,3.71043]
[1724719677749,1.94777562,2695.3,2695.2,0.06835357]
[1724719677949,1.94777562,2695.3,2695.0,3.71049]
[1724719678160,1.94777562,2695.3,2695.1,0.06832511]
[1724719679561,1.94710224,2695.3,2695.1,0.06832511]
[1724719680396,4.26290224,2695.2,2695.1,0.06832511]
[1724719681901,4.26290224,2695.2,2694.9,3.7107]
[1724719682098,4.26290224,2695.2,2695.1,0.06832511]
[1724719682303,4.26290224,2695.2,2694.9,3.7107]
[1724719682486,4.26290224,2695.2,2695.1,0.06832511]
[1724719682487,2.3158,2695.2,2695.1,0.06832511]
[1724719682663,2.3158,2695.2,2694.9,3.7107]
[1724719682869,2.3158,2695.2,2695.1,0.06832511]
[1724719683171,4.26266811,2695.2,2695.1,0.06832511]
[1724719683372,2.3158,2695.2,2694.9,3.7107]
[1724719683708,4.26266811,2695.2,2695.0,0.06832511]
[1724719684190,7.97302811,2695.2,2695.0,0.06832511]
[1724719684362,7.97302811,2695.2,2694.7,3.71097]
[1724719684569,7.97302811,2695.2,2694.8,0.06832511]
[1724719684770,7.97302811,2695.2,2694.7,3.71097]
[1724719684969,7.97302811,2695.2,2694.8,0.06832511]
[1724719685163,7.97302811,2695.2,2694.7,5.14748257]
[1724719685370,7.97302811,2695.2,2694.8,0.06832511]
[1724719685571,7.97302811,2695.2,2694.7,5.14748257]
[1724719685884,4.26266811,2695.2,2694.8,3.77905511]
[1724719686564,2.3158,2695.2,2694.8,3.77905511]
[1724719687399,7.57464574,2695.2,2694.8,0.06832511]
[1724719687621,6.02651,2694.9,2694.3,3.7114]
[1724719687768,1.54853574,2694.7,2694.3,3.7114]
[1724719688102,5.25954574,2694.7,2694.3,3.7114]
[1724719688302,5.25954574,2694.7,2694.1,7.4234]
[1724719688600,5.25954574,2694.7,2694.2,3.71164]
[1724719688601,2.3158,2694.6,2694.2,3.71164]
[1724719688806,2.3158,2694.6,2694.2,3.78000071]
[1724719689006,1.54853574,2694.5,2694.2,0.06836071]
[1724719689890,5.25982574,2694.5,2694.2,0.06836071]
[1724719690297,1.54853574,2694.5,2694.2,0.06836071]
[1724719691179,2.3158,2694.6,2694.2,3.77993071]
[1724719691436,2.3158,2694.6,2694.2,4.52909178]
[1724719692819,6.02694,2694.6,2694.2,0.81752178]
[1724719693019,1.54853574,2694.5,2694.2,0.06836071]
[1724719693383,8.97159574,2694.3,2694.2,0.06836071]
[1724719693606,6.05223,2694.3,2693.7,3.71229]
[1724719693922,1.54853574,2693.9,2693.6,3.7124]
[1724719694334,1.54853574,2693.7,2693.2,3.71293]
[1724719694500,2.3407,2693.6,2693.2,0.598273]
[1724719694689,2.3407,2693.6,2692.8,7.83809776]
[1724719694690,1.54853574,2693.3,2692.8,4.17166776]
[1724719694907,2.3407,2693.2,2692.8,3.71357]
[1724719695440,2.3407,2693.2,2693.0,3.71333]
[1724719696217,2.3407,2693.2,2692.8,3.71352]
[1724719696422,2.3407,2693.2,2692.8,4.384872]
[1724719696837,2.3407,2693.2,2692.9,3.71338]
[1724719698447,2.3407,2693.2,2693.0,3.71332]
[1724719698659,2.3407,2693.5,2693.0,3.71332]
[1724719702167,2.3407,2693.5,2692.8,0.671352]
[1724719702371,14.7148795,2694.0,2693.3,3.71279]
[1724719702372,2.3407,2693.7,2693.3,3.71279]
[1724719702612,2.3407,2693.7,2693.2,3.71302]
[1724719703309,2.3407,2693.7,2693.1,3.71305]
[1724719703511,6.05308,2693.7,2693.3,0.06832346]
[1724719703715,6.05308,2693.7,2693.2,3.71304]
[1724719703917,6.05308,2693.7,2693.4,0.06832346]
[1724719704118,6.05308,2693.7,2693.2,3.71304]
[1724719704765,2.3407,2693.7,2693.3,0.06832346]
[1724719704967,2.3407,2693.7,2693.3,3.71289]
[1724719705369,2.3407,2693.7,2693.4,0.06830209]
[1724719706905,6.05309,2693.7,2693.4,0.06830209]
[1724719707203,6.03454,2693.5,2693.4,0.06830209]
[1724719707623,3.71285,2693.4,2692.9,3.71341]
[1724719707801,3.71285,2693.4,2692.9,4.456121]
[1724719709034,6.03454,2693.5,2692.9,4.456121]
[1724719709826,6.03454,2693.5,2693.0,3.71329]
[1724719709995,2.3219,2693.5,2693.1,3.71318]
[1724719710320,2.3219,2693.5,2693.1,4.5301081]
[1724719710620,4.29428086,2693.7,2693.1,4.5301081]
[1724719710621,2.90373086,2693.7,2693.1,0.8169281]
[1724719710798,2.3219,2693.7,2693.4,3.7127]
[1724719710991,2.3219,2693.7,2693.3,3.7129]
[1724719712189,6.03426,2693.7,2693.3,3.7129]
[1724719715920,3.71254,2693.6,2693.1,3.71316]
[1724719716420,3.71254,2693.6,2693.1,4.755816]
[1724719716816,3.71254,2693.6,2693.1,4.755776]
[1724719717123,9.74672,2693.7,2693.1,4.755736]
[1724719717319,9.74672,2693.7,2693.1,8.468836]
[1724719717519,6.03426,2693.7,2693.1,8.468836]
[1724719718021,7.58514658,2693.7,2693.1,8.468836]
[1724719718319,11.29759658,2693.7,2693.1,8.468856]
[1724719718526,11.29759658,2693.7,2693.2,0.06820236]
[1724719719430,7.58514658,2693.7,2693.2,0.06820236]
[1724719719642,11.29758658,2693.7,2693.2,0.06820236]
[1724719719795,3.71255,2693.6,2693.2,0.06820236]
[1724719719998,2.3219,2693.4,2693.2,0.06820236]
[1724719720240,1.55088658,2693.3,2693.2,0.06820236]
[1724719720422,1.55088658,2693.3,2692.9,6.71339]
[1724719720626,6.03468,2693.4,2692.9,10.42678]
[1724719720851,6.03468,2693.4,2693.0,3.71331]
[1724719720993,2.3219,2693.4,2693.1,3.0]
[1724719721696,2.3219,2693.7,2693.3,3.71291]
[1724719726244,1.55088658,2693.6,2693.1,6.71307]
[1724719726458,5.26339658,2693.6,2693.1,6.71307]
[1724719726750,2.3219,2693.5,2693.1,3.71307]
[1724719728768,2.3219,2693.5,2693.1,7.42617]
[1724719728902,2.3219,2693.5,2693.1,3.71307]
[1724719730926,5.26366658,2693.4,2692.9,3.71335]
[1724719731128,2.3219,2693.3,2692.9,3.71335]
[1724719732042,2.3219,2692.9,2692.7,3.71365]
[1724719732237,2.3219,2692.9,2692.3,3.71422]
[1724719732238,1.55088658,2692.8,2692.3,3.71422]
[1724719732444,1.55088658,2692.6,2692.3,3.71422]
[1724719732664,1.55088658,2692.6,2692.3,7.42844]
[1724719732797,1.55088658,2692.6,2692.3,3.71422]
[1724719732999,1.55088658,2692.6,2692.3,3.71421]
[1724719733245,2.3219,2692.5,2692.3,3.71421]
[1724719733411,2.3219,2692.5,2692.3,7.42842]
[1724719733616,2.3219,2692.5,2692.4,0.06614651]
[1724719736544,2.3593,2692.7,2692.4,0.06614651]
[1724719737737,2.3593,2692.7,2692.4,3.78029651]
[1724719740246,2.3593,2692.7,2692.4,0.06614651]
[1724719740413,3.71341,2693.0,2692.5,3.71395]
[1724719740414,7.21306867,2693.0,2692.5,3.71395]
[1724719740613,9.57236867,2693.0,2692.4,0.06614651]
[1724719740810,1.94877209,2692.9,2692.5,3.714]
[1724719741015,9.57236867,2693.0,2692.5,3.78014651]
[1724719741257,11.18977119,2693.0,2692.5,3.78014651]
[1724719742313,11.18977119,2693.0,2692.5,3.78009651]
[1724719742751,7.47636119,2693.0,2692.5,3.78007651]
[1724719742974,2.33852651,2693.3,2692.7,1.55088658]
[1724719742975,1.94877209,2693.1,2692.7,1.55088658]
[1724719743112,1.94877209,2693.1,2692.6,2.2849]
[1724719743113,4.30807209,2693.3,2692.6,2.2849]
[1724719743316,4.30807209,2693.3,2692.5,1.61703309]
[1724719743317,8.02100209,2693.3,2692.8,3.7136]
[1724719743846,1.55088658,2693.0,2692.9,0.06690174]
[1724719744020,1.55088658,2693.0,2692.7,3.71374]
[1724719744559,1.55088658,2693.0,2692.8,0.06685899]
[1724719744852,1.94877209,2693.2,2692.8,0.06685899]
[1724719745060,2.3593,2693.3,2692.9,3.78016061]
[1724719745920,8.02101209,2693.3,2692.9,0.06678061]
[1724719746655,6.07224,2693.3,2692.9,0.06678061]
[1724719746823,2.3593,2693.3,2692.9,3.78024061]
[1724719747419,2.3593,2693.3,2692.9,0.81617067]
[1724719747642,4.30455017,2693.6,2692.9,1.61766719]
[1724719747950,9.56800675,2693.6,2693.1,3.71311]
[1724719748352,9.56800675,2693.6,2693.2,0.06668798]
[1724719748958,5.85543675,2693.6,2693.2,0.06668798]
[1724719749166,4.30455017,2693.6,2693.2,0.06668798]
[1724719749585,8.01710017,2693.6,2693.2,0.06668798]
[1724719751051,4.30455017,2693.6,2693.2,0.06668798]
[1724719751262,4.30436868,2693.6,2693.2,0.06668798]
[1724719752353,7.62929658,2693.3,2693.2,0.06668798]
[1724719752557,7.62929658,2693.3,2692.8,6.71359]
[1724719752770,2.3655,2693.3,2693.2,0.0665455]
[1724719752975,2.3655,2693.3,2692.8,3.71352]
[1724719752976,2.3655,2693.3,2692.8,7.42701]
[1724719753155,2.3655,2693.3,2693.2,0.06655262]
[1724719753355,2.3655,2693.3,2692.8,3.7135]
[1724719753550,2.3655,2693.3,2693.2,0.06655262]
[1724719753767,2.3655,2693.3,2692.8,3.7135]
[1724719753968,2.3655,2693.3,2693.2,0.06655262]
[1724719754193,2.3655,2693.3,2692.8,7.42701]
[1724719754394,2.3655,2693.3,2693.2,0.06655262]
[1724719754595,3.69425913,2693.3,2692.8,3.7135]
[1724719754819,2.3655,2693.3,2693.2,0.06655262]
[1724719754959,2.3655,2693.3,2692.8,7.42703]
[1724719755172,2.3655,2693.3,2693.2,0.06655262]
[1724719755710,2.3655,2693.3,2692.8,7.42703]
[1724719755909,2.3655,2693.3,2692.9,0.06655262]
[1724719755910,3.91638658,2693.3,2692.9,0.06655262]
[1724719756215,10.53244483,2693.3,2692.9,0.06655262]
[1724719756387,2.3655,2693.2,2692.9,0.06655262]
[1724719756715,2.3655,2693.2,2693.0,0.0664457]
[1724719756938,2.3655,2693.2,2692.8,3.7135]
[1724719757211,5.26415658,2693.1,2692.9,0.0664457]
[1724719757711,2.3655,2693.0,2692.6,6.71382]
[1724719757913,2.3655,2693.0,2692.6,6.7138]
[1724719759795,2.3655,2693.0,2692.6,10.42761]
[1724719760828,2.3655,2693.2,2692.7,2.3532]
[1724719760998,2.3655,2693.2,2692.9,3.71333]
[1724719761198,2.3655,2693.2,2693.0,3.7133]
[1724719762119,4.31153367,2693.4,2693.0,3.71323]
[1724719762307,2.3655,2693.4,2693.0,3.71323]
[1724719763515,4.31153367,2693.4,2693.1,0.0666167]
[1724719763708,2.3655,2693.4,2693.0,3.71323]
[1724719763904,4.31153367,2693.4,2693.1,0.0666167]
[1724719764109,4.31153367,2693.4,2693.0,3.71323]
[1724719765635,4.31182646,2693.4,2693.0,3.71323]
[1724719768142,1.94632646,2693.5,2693.2,3.71305]
[1724719768315,1.94632646,2693.5,2693.1,3.71318]
[1724719768635,1.94632646,2693.5,2693.2,0.06655259]
[1724719770317,1.55088658,2693.3,2693.2,0.06655259]
[1724719770517,3.98058658,2693.3,2692.9,3.71345]
[1724719770717,3.98058658,2693.3,2693.0,0.06648134]
[1724719774132,7.69353658,2693.3,2693.0,0.06648134]
[1724719774332,9.63986304,2693.3,2692.8,3.71351]
[1724719774645,7.69353658,2693.3,2692.9,0.06648847]
[1724719775538,9.6409388,2693.3,2692.9,0.06648847]
[1724719776462,1.94740222,2693.4,2692.9,4.7078279]
[1724719776763,4.37710222,2693.5,2693.2,3.71293]
[1724719776969,4.37710222,2693.5,2693.3,0.06649559]
[1724719777167,4.37710222,2693.5,2693.1,3.71316]
[1724719777330,4.37710222,2693.5,2693.2,0.06649559]
[1724719777794,1.94740222,2693.4,2693.2,0.06649559]
[1724719778270,1.94740222,2693.4,2693.3,0.06647422]
[1724719778467,1.94740222,2693.4,2693.0,3.71331]
[1724719778674,1.94740222,2693.4,2693.1,0.06647422]
[1724719779058,1.94740222,2693.4,2693.1,3.77964422]
[1724719779495,2.4297,2693.5,2693.1,7.49281422]
[1724719779496,4.37710222,2693.5,2693.1,7.49281422]
[1724719779794,1.94740222,2693.4,2693.1,3.77964422]
[1724719779995,1.94740222,2693.4,2693.2,3.71304]
[1724719780196,2.4297,2693.5,2693.2,3.71304]
[1724719780500,1.94758161,2693.4,2693.3,0.06635311]
[1724719780700,1.94758161,2693.4,2693.2,3.71304]
[1724719780998,1.94758161,2693.4,2693.3,0.06635311]
[1724719781497,2.4297,2693.5,2693.3,0.06635311]
[1724719781687,2.4297,2693.5,2693.1,3.71318]
[1724719781894,1.94817624,2693.4,2693.2,0.06635311]
[1724719782403,1.94817624,2693.3,2693.2,0.06635311]
[1724719782973,1.94817624,2693.4,2693.2,0.06635311]
[1724719783175,1.94817624,2693.3,2693.2,0.06635311]
[1724719783383,1.94817624,2693.3,2693.0,3.71332]
[1724719783709,1.94817624,2693.3,2693.1,0.06637449]
[1724719785100,5.66108624,2693.3,2693.1,0.06637449]
[1724719785313,5.66221247,2693.3,2692.8,7.42711]
[1724719785514,1.94930247,2693.3,2692.8,8.85901966]
[1724719785819,1.94930247,2693.3,2692.9,3.77992423]
[1724719786120,1.94930247,2693.2,2693.0,3.71332]
[1724719786480,1.94930247,2693.3,2693.1,0.06647423]
[1724719787202,1.94930247,2693.4,2693.2,1.55088658]
[1724719787393,1.94930247,2693.6,2693.5,3.71264]
[1724719787600,1.94930247,2693.6,2693.3,3.77920449]
[1724719787783,1.94930247,2693.6,2693.5,0.06635311]
[1724719787983,1.94930247,2693.6,2693.4,3.77908599]
[1724719788185,1.94930247,2693.7,2693.4,8.62973326]
[1724719788430,1.94930247,2693.7,2693.5,0.06634599]
[1724719789491,1.94930247,2693.6,2693.5,0.06634599]
[1724719789716,4.37900247,2693.6,2693.5,0.06634599]
[1724719790027,4.3785498,2693.6,2693.5,0.06634599]
[1724719790630,4.3785498,2693.6,2693.3,3.71288]
[1724719790796,4.3785498,2693.6,2693.5,0.06609666]
[1724719790978,4.3785498,2693.6,2693.3,4.79326294]
[1724719791182,4.3785498,2693.6,2693.4,0.06609666]
[1724719791393,2.4297,2693.6,2693.4,0.06609666]
[1724719791684,4.3785498,2693.6,2693.4,0.06609666]
[1724719793193,2.4297,2693.6,2693.4,0.06609666]
[1724719793723,4.3785498,2693.6,2693.4,0.06609666]
[1724719794096,1.9488498,2693.5,2693.4,0.06609666]
[1724719794510,4.3785498,2693.6,2693.4,0.06609666]
[1724719794711,2.4297,2693.6,2693.4,3.77885666]
[1724719794907,4.37815181,2693.6,2693.4,0.06609666]
[1724719795112,1.94845181,2693.5,2693.2,6.71293]
[1724719795295,1.94845181,2693.5,2693.3,0.06609666]
[1724719795500,1.94845181,2693.5,2693.2,6.71293]
[1724719795712,4.37815181,2693.6,2693.3,0.06609666]
[1724719796021,4.37815181,2693.6,2693.2,10.42589]
[1724719796220,4.37815181,2693.6,2693.4,0.06609666]
[1724719796425,4.37815181,2693.6,2693.3,3.7129]
[1724719796601,4.37815181,2693.6,2693.5,0.06609666]
[1724719796800,4.37815181,2693.6,2693.3,3.7129]
[1724719797026,4.37815181,2693.6,2693.5,0.06609666]
[1724719797617,4.37815181,2693.6,2693.3,3.7129]
[1724719797787,4.37815181,2693.6,2693.5,0.06609666]
[1724719797987,4.37815181,2693.6,2693.3,3.7129]
[1724719798227,4.37815181,2693.6,2693.4,0.06609666]
[1724719799622,4.37779831,2693.6,2693.4,0.06609666]
[1724719803122,4.37785073,2693.6,2693.4,0.06609666]
[1724719803534,1.94815073,2693.5,2693.4,0.06609666]
[1724719804457,2.4297,2693.6,2693.4,0.06609666]
[1724719804866,4.76748088,2693.6,2693.4,0.06609666]
[1724719805053,10.08170746,2693.5,2693.4,0.06609666]
[1724719805237,11.45656658,2693.5,2693.4,0.06609666]
[1724719805444,2.4804,2693.2,2692.7,3.71365]
[1724719805640,2.4804,2692.9,2692.7,3.71365]
[1724719805956,2.4804,2692.9,2692.8,0.06611091]
[1724719806267,4.42920802,2692.9,2692.5,11.09392]
[1724719806470,4.42920802,2692.9,2692.8,0.06611091]
[1724719806764,4.42920802,2692.9,2692.5,7.38]
[1724719806765,2.4804,2692.7,2692.5,7.38]
[1724719807070,1.55088658,2692.6,2692.5,7.38]
[1724719807682,2.4804,2692.7,2692.5,7.38]
[1724719807893,4.42859748,2692.7,2692.5,7.38]
[1724719808461,2.4804,2692.7,2692.6,0.06662394]